bitfinex-derivatives/quotes_ETHF0:USTF0_20251031
["timestamp","ask_amount","ask_price","bid_price","bid_amount"]
[1761895356104,1.9715401,3833.4,3832.6,1.86623636]
[1761895356105,0.443,3832.9,3832.8,3.2078]
[1761895356402,0.7705,3832.7,3832.6,50.0936434]
[1761895356598,0.7705,3832.7,3832.6,9.2936434]
[1761895356800,0.7705,3832.7,3832.6,9.064]
[1761895357106,0.7705,3832.7,3832.6,9.06619967]
[1761895357907,0.3275,3832.7,3832.6,9.06619967]
[1761895358809,0.7705,3832.7,3832.6,9.06619967]
[1761895359008,0.7705,3832.7,3832.6,9.06719967]
[1761895360001,0.551,3832.7,3832.6,9.06719967]
[1761895360707,0.3275,3832.7,3832.6,9.06719967]
[1761895361208,0.3303,3832.9,3832.6,9.06719967]
[1761895361404,0.3303,3832.9,3832.8,4.40561285]
[1761895362408,0.3303,3832.9,3832.8,3.2078]
[1761895362998,0.1423,3833.0,3832.9,0.32879]
[1761895363204,0.4726,3833.0,3832.9,10.59260285]
[1761895365205,0.1423,3833.0,3832.9,10.59260285]
[1761895365408,0.3303,3833.3,3833.2,0.32876]
[1761895365613,0.3303,3833.3,3833.2,13.80037285]
[1761895367504,0.3303,3833.3,3833.2,54.60037285]
[1761895371111,0.3303,3833.3,3833.2,51.39257285]
[1761895371509,0.3303,3833.3,3833.2,53.40256]
[1761895373615,0.3303,3833.3,3833.2,54.60037285]
[1761895375310,0.3303,3833.3,3833.2,53.40256]
[1761895376617,0.00322725,3833.4,3833.2,53.40256]
[1761895376914,0.33352725,3833.4,3833.2,53.40256]
[1761895377114,0.00322725,3833.4,3833.3,1.34779798]
[1761895377716,0.33352725,3833.4,3833.3,1.34779798]
[1761895378114,0.33352725,3833.4,3833.3,3.21403434]
[1761895378814,0.00322725,3833.4,3833.3,3.21403434]
[1761895379217,0.3303,3833.8,3833.3,1.34779798]
[1761895379412,0.3303,3833.8,3833.7,3.2078]
[1761895379608,0.3303,3833.8,3833.7,12.2728]
[1761895380112,0.33260109,3833.8,3833.7,12.2728]
[1761895380320,0.33260109,3833.8,3833.7,12.60152]
[1761895380519,0.00230109,3833.8,3833.7,12.60152]
[1761895380720,0.3303,3834.3,3834.2,0.32868]
[1761895380914,0.3303,3834.3,3834.2,13.62059798]
[1761895381116,0.5497,3834.3,3834.2,53.0728]
[1761895382014,0.55232542,3834.3,3834.2,53.0728]
[1761895384524,0.33292542,3834.3,3834.2,53.0728]
[1761895386425,0.00262542,3834.3,3834.2,54.42059798]
[1761895388125,0.33292542,3834.3,3834.2,54.42059798]
[1761895389524,0.04861427,3834.5,3834.3,0.32867]
[1761895389721,0.3303,3834.9,3834.8,0.32863]
[1761895389923,0.3303,3834.9,3834.8,12.60043]
[1761895390127,0.5497,3834.9,3834.8,12.2718]
[1761895390328,0.7737,3834.9,3834.8,12.60043]
[1761895390526,0.77588273,3834.9,3834.8,12.60043]
[1761895391025,0.77588273,3834.9,3834.8,12.8271058]
[1761895391424,0.55188273,3834.9,3834.8,12.8271058]
[1761895391626,0.33248273,3834.9,3834.8,12.8271058]
[1761895392425,0.77788273,3834.9,3834.8,3.4344758]
[1761895392628,0.77788273,3834.9,3834.8,12.2708]
[1761895393931,0.55938273,3834.9,3834.8,12.2708]
[1761895394134,0.33248273,3834.9,3834.8,12.2708]
[1761895395832,0.00218273,3834.9,3834.8,12.2708]
[1761895396027,0.56338273,3834.9,3834.8,12.2708]
[1761895396533,0.33648273,3834.9,3834.8,12.2708]
[1761895396726,0.55738273,3834.9,3834.8,12.2708]
[1761895397733,0.55738273,3834.9,3834.8,53.0708]
[1761895398033,0.78088273,3834.9,3834.8,53.0708]
[1761895398634,0.78088273,3834.9,3834.8,53.39943]
[1761895400038,0.33648273,3834.9,3834.8,53.39943]
[1761895400337,0.00218273,3834.9,3834.8,53.39943]
[1761895400535,0.34138273,3834.9,3834.8,53.39943]
[1761895401331,0.00218273,3834.9,3834.8,53.39943]
[1761895401532,0.135,3835.5,3835.3,0.32858]
[1761895401727,0.3392,3835.7,3835.5,0.32857]
[1761895402036,0.3392,3835.7,3835.6,9.062]
[1761895402538,0.00311565,3835.7,3835.6,9.06488851]
[1761895402726,0.00311565,3835.7,3835.6,49.86488851]
[1761895403130,0.34231565,3835.7,3835.6,49.86488851]
[1761895407338,0.34231565,3835.7,3835.6,53.07268851]
[1761895407839,0.34231565,3835.7,3835.6,49.86488851]
[1761895408247,0.34231565,3835.7,3835.6,53.07268851]
[1761895410447,0.78671565,3835.7,3835.6,44.01068851]
[1761895410652,0.78671565,3835.7,3835.6,53.07068851]
[1761895411253,0.78671565,3835.7,3835.6,44.01068851]
[1761895411454,0.78671565,3835.7,3835.6,12.27068851]
[1761895411851,0.78671565,3835.7,3835.6,3.21068851]
[1761895425160,0.56321565,3835.7,3835.6,3.21068851]
[1761895425657,0.34231565,3835.7,3835.6,3.21068851]
[1761895427558,0.34231565,3835.7,3835.6,3.53924851]
[1761895430360,0.00311565,3835.7,3835.6,3.53924851]
[1761895430557,0.135,3836.5,3836.3,0.32849]
[1761895430757,0.3576,3837.0,3836.4,13.61359798]
[1761895430952,0.3576,3837.0,3836.9,3.2078]
[1761895431155,0.9394,3837.0,3836.9,12.2658]
[1761895431661,0.94246168,3837.0,3836.9,12.2658]
[1761895431849,0.71056168,3837.0,3836.9,12.2658]
[1761895432858,0.3499,3837.4,3836.9,12.2658]
[1761895433057,0.3499,3837.7,3837.3,3.53621]
[1761895433257,0.4791,3837.5,3837.4,49.857]
[1761895433560,0.6993,3837.5,3837.4,49.857]
[1761895433761,0.4791,3837.5,3837.4,50.1854]
[1761895433961,0.4819155,3837.5,3837.4,49.857]
[1761895436160,0.0028155,3837.5,3837.4,49.857]
[1761895436864,0.3499,3838.0,3837.7,0.32837]
[1761895437157,0.3499,3838.0,3837.4,49.857]
[1761895437158,0.3499,3838.0,3837.9,4.73163445]
[1761895437862,0.35220372,3838.0,3837.9,4.73163445]
[1761895438260,0.48140372,3838.0,3837.9,3.2078]
[1761895438762,0.93350372,3838.0,3837.9,3.2078]
[1761895440064,2.12897817,3838.0,3837.9,12.2628]
[1761895440659,0.93350372,3838.0,3837.9,12.2628]
[1761895443367,0.93350372,3838.0,3837.9,12.2618]
[1761895446175,0.93350372,3838.0,3837.9,12.2608]
[1761895449569,0.48140372,3838.0,3837.9,12.2608]
[1761895449771,0.48140372,3838.0,3837.9,12.58916]
[1761895449772,0.00230372,3838.0,3837.9,12.58916]
[1761895450372,0.35220372,3838.0,3837.9,12.58916]
[1761895450763,0.00230372,3838.0,3837.9,12.58916]
[1761895451168,0.32430372,3838.0,3837.9,12.58916]
[1761895452570,0.00230372,3838.0,3837.9,12.58916]
[1761895452769,0.32430372,3838.0,3837.9,12.58916]
[1761895453377,0.00230372,3838.0,3837.9,12.58916]
[1761895453770,0.32430372,3838.0,3837.9,12.58916]
[1761895454376,0.00230372,3838.0,3837.9,12.58916]
[1761895454970,0.00230372,3838.0,3837.9,53.38916]
[1761895456872,3.2078,3839.4,3838.0,0.82088]
[1761895457180,0.348,3839.3,3839.2,1.19547445]
[1761895457479,0.8047,3839.3,3839.2,12.2588]
[1761895457974,0.80799272,3839.3,3839.2,12.26138484]
[1761895459269,0.80799272,3839.3,3839.2,3.21038484]
[1761895459576,0.80799272,3839.3,3839.2,12.26038484]
[1761895460674,0.57489272,3839.3,3839.2,12.26038484]
[1761895462778,0.35129272,3839.3,3839.2,12.26038484]
[1761895463372,0.57489272,3839.3,3839.2,12.26038484]
[1761895463574,0.80799272,3839.3,3839.2,12.26038484]
[1761895463773,0.80799272,3839.3,3839.2,3.21038484]
[1761895468868,0.88942267,3839.3,3839.2,3.21038484]
[1761895469067,0.88942267,3839.3,3838.0,1.19547445]
[1761895469376,0.348,3838.3,3838.1,9.049]
[1761895469675,0.348,3838.3,3838.2,3.2078]
[1761895470379,0.348,3838.3,3838.2,3.2096664]
[1761895470877,0.348,3838.3,3838.2,12.2586664]
[1761895477082,0.5716,3838.3,3838.2,12.2586664]
[1761895477280,0.5716,3838.3,3838.2,12.2576664]
[1761895479183,0.8047,3838.3,3838.2,12.2576664]
[1761895479484,0.5716,3838.3,3838.2,12.2576664]
[1761895479682,0.348,3838.3,3838.2,12.2576664]
[1761895481178,0.5716,3838.3,3838.2,3.2096664]
[1761895481377,0.7961,3838.3,3838.2,12.2576664]
[1761895484786,0.7961,3838.3,3838.2,0.0018664]
[1761895494592,2.5831,3838.3,3838.2,0.0018664]
[1761895497290,3.9280425,3838.3,3838.2,0.0018664]
[1761895500295,2.5831,3838.3,3838.2,0.0018664]
[1761895514307,2.3586,3838.3,3838.2,0.0018664]
[1761895518000,0.7949,3838.3,3838.2,0.0018664]
[1761895528404,0.7809,3837.7,3837.6,40.8]
[1761895528609,0.7809,3837.4,3837.3,9.045]
[1761895529110,0.7809,3837.4,3837.3,49.845]
[1761895529408,0.7809,3837.4,3837.3,49.84796812]
[1761895531411,0.7809,3837.4,3837.3,9.04796812]
[1761895533510,2.1258425,3837.4,3837.3,0.00296812]
[1761895533807,5.41511877,3837.4,3837.3,0.00296812]
[1761895534008,6.03119041,3837.4,3836.6,3.2078]
[1761895534210,0.7809,3836.3,3836.2,3.2078]
[1761895534412,0.7809,3836.3,3836.2,12.2528]
[1761895535204,0.7809,3836.3,3836.2,12.25614426]
[1761895535205,0.78373954,3836.3,3836.2,12.25614426]
[1761895536317,0.78373954,3836.3,3836.2,9.04834426]
[1761895539522,0.78373954,3836.3,3836.2,9.04934426]
[1761895540021,0.32553954,3836.3,3836.2,9.04934426]
[1761895540215,0.55363954,3836.3,3836.2,9.04934426]
[1761895540415,0.32553954,3836.3,3836.2,9.04934426]
[1761895543323,0.78833954,3836.3,3836.2,9.04934426]
[1761895548525,0.32553954,3836.3,3836.2,9.04934426]
[1761895549025,0.55953954,3836.3,3836.2,9.04934426]
[1761895549225,0.79423954,3836.3,3836.2,9.04934426]
[1761895553126,0.55953954,3836.3,3836.2,9.04934426]
[1761895553926,0.32553954,3836.3,3836.2,9.04934426]
[1761895554729,0.00283954,3836.3,3836.2,9.04934426]
[1761895555230,0.34393954,3836.3,3836.2,9.04934426]
[1761895556533,0.57793954,3836.3,3836.2,9.04934426]
[1761895556937,0.57793954,3836.3,3836.2,0.00334426]
[1761895557134,0.57793954,3836.3,3836.2,9.04834426]
[1761895557536,0.81263954,3836.3,3836.2,9.04834426]
[1761895560340,2.008995,3836.3,3836.2,0.00334426]
[1761895560541,2.008995,3836.3,3836.2,9.04834426]
[1761895561438,2.008995,3836.3,3836.2,0.00334426]
[1761895561633,0.81263954,3836.3,3836.2,0.00334426]
[1761895562232,0.3411,3835.2,3835.1,1.86760203]
[1761895562431,0.234,3835.2,3835.0,5.07540203]
[1761895562639,0.4687,3835.1,3835.0,3.2078]
[1761895562841,0.8098,3835.1,3835.0,3.2078]
[1761895563042,0.9439,3835.0,3834.9,9.045]
[1761895563239,0.9439,3835.0,3834.9,9.04804473]
[1761895570044,0.4752,3835.0,3834.9,9.04804473]
[1761895570942,0.7092,3835.0,3834.9,9.04804473]
[1761895574648,0.4752,3835.0,3834.9,9.04804473]
[1761895576050,0.9121,3835.0,3834.9,0.00304473]
[1761895577450,1.60898705,3835.0,3834.9,0.00304473]
[1761895577949,0.99363132,3835.0,3834.9,0.00304473]
[1761895578150,0.9121,3835.0,3834.9,0.00304473]
[1761895578854,2.10845546,3835.0,3834.9,0.00304473]
[1761895580256,0.9121,3835.0,3834.9,0.00304473]
[1761895580451,2.10845546,3835.0,3834.9,0.00304473]
[1761895585856,0.5401,3834.1,3834.0,40.8]
[1761895586960,0.5401,3834.1,3834.0,40.80332979]
[1761895587161,0.324,3834.1,3834.0,40.80332979]
[1761895588061,0.7783,3834.1,3834.0,40.80332979]
[1761895588265,1.97465546,3834.1,3834.0,40.80332979]
[1761895588563,1.97465546,3834.1,3834.0,0.00332979]
[1761895590369,0.5401,3834.1,3834.0,0.00332979]
[1761895590565,0.324,3834.4,3834.0,1.52837525]
[1761895591868,0.4547,3834.5,3834.3,1.19635546]
[1761895592166,0.4547,3834.5,3834.4,9.047]
[1761895593769,3.3419,3835.0,3834.4,9.047]
[1761895593978,3.3419,3835.0,3834.5,0.32865]
[1761895593979,0.324,3834.7,3834.5,0.32865]
[1761895594264,3.3419,3835.0,3834.5,0.32865]
[1761895594265,0.324,3834.9,3834.8,1.19635546]
[1761895594472,0.324,3834.9,3834.8,10.24335546]
[1761895594664,0.324,3834.9,3834.8,51.04335546]
[1761895594866,0.324,3835.2,3834.8,51.37197546]
[1761895595163,0.324,3835.2,3835.1,1.19635546]
[1761895596470,0.324,3835.2,3835.1,1.52495546]
[1761895596772,0.324,3835.2,3835.1,1.19635546]
[1761895597166,0.324,3835.4,3835.1,1.52495546]
[1761895597369,0.324,3835.4,3835.2,9.046]
[1761895598068,0.324,3835.4,3835.3,0.32858]
[1761895598459,0.1341,3835.5,3835.3,0.32858]
[1761895598660,3.2078,3835.9,3835.2,9.046]
[1761895598661,0.324,3835.8,3835.5,0.32855]
[1761895598871,0.324,3836.2,3835.7,1.52489546]
[1761895599268,0.1307,3836.0,3835.7,1.52489546]
[1761895599572,0.4547,3836.0,3835.7,1.52489546]
[1761895599770,0.324,3835.9,3835.7,1.52489546]
[1761895599972,0.324,3835.9,3835.7,1.19635546]
[1761895600271,0.1307,3835.5,3835.0,5.40400203]
[1761895600468,0.5401,3835.1,3835.0,3.2078]
[1761895600663,0.5401,3835.1,3835.0,12.2528]
[1761895601067,0.5401,3835.1,3835.0,53.0528]
[1761895601272,1.97465546,3835.1,3835.0,40.8]
[1761895601572,1.97465546,3835.1,3835.0,9.045]
[1761895603279,0.324,3835.1,3835.0,9.045]
[1761895603478,0.3548,3835.4,3835.0,9.045]
[1761895603775,0.3548,3835.3,3835.0,9.045]
[1761895603964,0.3548,3835.3,3835.1,0.32859]
[1761895604168,0.3548,3835.4,3835.1,0.32859]
[1761895605079,0.3548,3835.2,3835.1,0.32859]
[1761895606676,0.3548,3835.4,3835.1,0.32859]
[1761895607074,0.5771,3835.4,3835.0,9.045]
[1761895607378,0.3548,3835.3,3835.0,9.045]
[1761895608175,0.3548,3835.3,3835.2,3.2078]
[1761895613485,0.3548,3835.3,3835.2,3.2078]
[1761895616980,0.3548,3835.3,3835.2,3.53638]
[1761895617688,0.1307,3835.5,3835.2,3.53638]
[1761895617989,0.3548,3835.4,3835.3,9.043]
[1761895619201,0.1307,3835.5,3835.3,9.043]
[1761895619502,0.4855,3835.5,3835.4,0.32856]
[1761895620297,0.3548,3835.9,3835.4,41.12856]
[1761895620601,0.3548,3835.9,3835.6,4.55412331]
[1761895620800,0.3548,3835.9,3835.7,9.043]
[1761895621001,0.8011,3835.7,3835.6,3.2078]
[1761895621298,0.8011,3835.7,3835.6,12.2508]
[1761895621602,0.7059,3835.5,3835.4,40.8]
[1761895621800,0.7059,3835.5,3835.4,49.843]
[1761895622600,0.9299,3835.5,3835.4,49.843]
[1761895623098,0.9299,3835.5,3835.4,9.043]
[1761895625494,0.2223,3835.3,3835.2,3.2078]
[1761895625692,0.8011,3835.3,3835.2,12.2508]
[1761895625898,0.2223,3835.0,3834.9,40.8]
[1761895626198,0.9299,3835.0,3834.9,49.843]
[1761895627002,0.4836,3835.0,3834.9,49.843]
[1761895627697,0.3548,3835.3,3834.9,53.05692534]
[1761895628097,0.3548,3835.3,3834.9,53.38552534]
[1761895629998,0.5771,3835.3,3834.9,51.71060203]
[1761895630194,0.7059,3835.0,3834.9,40.8]
[1761895630398,0.7059,3835.0,3834.9,49.843]
[1761895631599,0.4724,3834.9,3834.8,1.86760203]
[1761895631899,0.5874,3834.1,3833.8,2.33279545]
[1761895632096,0.823,3834.1,3834.0,40.80332979]
[1761895633901,0.3506,3834.1,3834.0,40.80332979]
[1761895634203,0.5874,3834.1,3834.0,40.80332979]
[1761895634802,0.823,3834.1,3834.0,40.80332979]
[1761895635800,0.823,3834.1,3834.0,49.87532979]
[1761895635999,0.5874,3834.1,3834.0,49.87532979]
[1761895636499,0.3506,3834.1,3834.0,49.87532979]
[1761895636900,0.5874,3834.1,3834.0,49.87532979]
[1761895637701,0.3506,3834.1,3834.0,49.87532979]
[1761895638493,0.345,3834.4,3834.0,49.87532979]
[1761895644306,0.345,3834.4,3834.0,50.20400979]
[1761895644902,0.345,3834.4,3834.0,49.87532979]
[1761895645408,0.345,3834.7,3834.2,0.32866]
[1761895645704,0.345,3834.7,3834.3,9.39565]
[1761895646502,0.345,3834.7,3834.3,12.60345]
[1761895647300,0.345,3834.7,3834.4,1.34632331]
[1761895648401,0.9482,3834.5,3834.3,3.2078]
[1761895648607,0.814,3834.4,3834.3,3.2078]
[1761895648808,0.814,3834.4,3834.3,12.2728]
[1761895649108,0.814,3834.4,3834.3,3.2078]
[1761895649501,0.814,3834.4,3834.3,12.2758]
[1761895653615,0.814,3834.4,3834.3,9.068]
[1761895658720,0.5763,3834.3,3834.0,44.33979979]
[1761895658923,0.345,3834.2,3834.1,9.061]
[1761895659722,0.5763,3834.2,3834.1,9.061]
[1761895660223,0.814,3834.2,3834.1,9.061]
[1761895660612,0.814,3834.2,3834.0,40.80332979]
[1761895660613,0.345,3834.1,3834.0,44.01112979]
[1761895660819,0.5763,3834.1,3834.0,53.07112979]
[1761895661019,0.345,3834.1,3834.0,53.07112979]
[1761895663427,0.8009,3834.1,3834.0,9.06132979]
[1761895665126,0.5658,3834.1,3834.0,9.06132979]
[1761895666431,0.345,3834.1,3834.0,9.06132979]
[1761895666732,0.345,3834.1,3834.0,12.26912979]
[1761895670528,0.345,3834.1,3834.0,9.06132979]
[1761895672333,0.8009,3834.1,3834.0,9.05632979]
[1761895673433,0.8009,3834.1,3834.0,0.00332979]
[1761895673636,0.8009,3834.1,3834.0,9.05532979]
[1761895677336,0.3259,3834.9,3834.0,10.4016531]
[1761895677535,0.3259,3834.8,3834.7,4.55412331]
[1761895677737,0.3259,3834.8,3834.7,9.052]
[1761895677938,0.7818,3834.8,3834.7,9.052]
[1761895678139,0.3259,3834.4,3834.3,3.2078]
[1761895678341,0.3259,3834.4,3834.3,12.2708]
[1761895678641,0.4555,3834.5,3834.3,12.59945]
[1761895678841,0.4555,3834.5,3834.4,1.8710164]
[1761895681245,0.4555,3834.5,3834.3,15.66778876]
[1761895681640,0.3259,3834.5,3834.3,15.66778876]
[1761895681840,0.3259,3834.5,3834.3,15.33913876]
[1761895682042,0.3259,3834.5,3834.4,0.32865]
[1761895682447,0.3259,3834.9,3834.4,0.32865]
[1761895682646,0.3259,3834.9,3834.6,1.52595236]
[1761895682847,0.3259,3834.9,3834.7,9.059]
[1761895683248,0.1288,3835.0,3834.8,3.53641]
[1761895683545,0.4547,3835.0,3834.9,1.19732236]
[1761895683945,0.4547,3835.0,3834.9,41.99732236]
[1761895686147,0.4547,3835.0,3834.9,40.8]
[1761895686341,0.6755,3835.0,3834.9,40.8]
[1761895686544,2.10792236,3835.0,3834.9,40.8]
[1761895687949,0.3504,3834.5,3834.4,3.2078]
[1761895688148,0.9114,3834.5,3834.4,3.2078]
[1761895688448,0.9114,3834.5,3834.4,53.0648]
[1761895688647,0.6763,3834.5,3834.4,53.0648]
[1761895689745,0.3259,3834.8,3834.4,53.0648]
[1761895689940,0.3259,3834.8,3834.4,54.59076236]
[1761895690141,0.3259,3834.8,3834.5,0.32864]
[1761895690446,1.787,3834.9,3834.7,1.19732236]
[1761895690650,2.1129,3834.9,3834.8,9.059]
[1761895692850,0.4908,3834.5,3834.4,44.0078]
[1761895693040,0.7098,3834.5,3834.4,53.0648]
[1761895696650,0.9399,3834.5,3834.4,53.0648]
[1761895700550,0.4908,3834.5,3834.4,53.0648]
[1761895700753,0.3565,3834.5,3834.4,53.0648]
[1761895701153,0.1288,3835.0,3834.4,53.0648]
[1761895701154,0.3238,3834.9,3834.4,54.59076236]
[1761895701353,0.5489,3834.9,3834.4,54.59076236]
[1761895701553,0.2251,3834.9,3834.4,54.59076236]
[1761895701765,0.3238,3834.8,3834.4,54.59076236]
[1761895702257,0.5489,3834.8,3834.4,54.59076236]
[1761895702458,0.4622,3834.5,3834.4,54.59076236]
[1761895703859,0.3238,3834.5,3834.4,54.59076236]
[1761895704052,0.3238,3834.9,3834.4,54.59076236]
[1761895704459,0.3238,3834.9,3834.7,1.19732236]
[1761895704664,0.3238,3834.9,3834.8,9.052]
[1761895705560,0.4526,3835.0,3834.8,9.052]
[1761895705965,3.2078,3835.2,3834.9,0.3286]
[1761895706169,0.3238,3835.4,3835.1,1.19732236]
[1761895706467,0.3238,3835.4,3835.2,9.051]
[1761895707969,0.3238,3835.3,3835.2,9.051]
[1761895708164,0.5489,3835.3,3835.2,9.051]
[1761895708563,0.3238,3835.3,3835.2,9.051]
[1761895710471,0.5489,3835.3,3835.2,9.051]
[1761895711971,0.3238,3835.3,3835.2,9.37958]
[1761895713172,0.3238,3835.3,3835.2,50.17958]
[1761895713374,0.3238,3835.3,3835.2,49.851]
[1761895715372,0.3238,3835.3,3835.2,50.17958]
[1761895717072,0.3238,3835.3,3835.2,49.851]
[1761895718178,0.5489,3835.3,3835.2,49.851]
[1761895720774,0.767,3835.3,3835.2,49.847]
[1761895721176,0.5489,3835.3,3835.2,49.847]
[1761895721878,0.3238,3835.3,3835.2,49.847]
[1761895725184,0.7738,3835.3,3835.2,49.847]
[1761895726885,0.5593,3835.3,3835.2,49.847]
[1761895728384,0.3238,3835.3,3835.2,49.847]
[1761895729584,0.5593,3835.3,3835.2,49.847]
[1761895736285,0.3238,3835.3,3835.2,49.847]
[1761895739089,3.2078,3835.8,3835.2,51.04432236]
[1761895739090,0.3348,3835.7,3835.2,51.04432236]
[1761895739281,0.3348,3835.7,3835.5,0.32855]
[1761895739593,0.3348,3835.7,3835.6,12.2538]
[1761895743593,0.3348,3835.7,3835.6,9.046]
[1761895743793,0.5703,3835.7,3835.6,9.046]
[1761895747695,0.3348,3835.7,3835.6,9.046]
[1761895747998,0.3348,3836.2,3835.8,0.32852]
[1761895748195,0.3348,3836.2,3836.0,3.2078]
[1761895748695,0.3348,3836.2,3836.0,3.41947491]
[1761895749388,0.3348,3836.2,3836.1,0.3285]
[1761895749791,0.3348,3836.2,3836.1,42.47451641]
[1761895750987,0.00283954,3836.3,3836.1,42.47451641]
[1761895751193,0.00283954,3836.3,3836.2,9.044]
[1761895751795,0.00283954,3836.3,3836.2,49.844]
[1761895756795,0.3337,3837.2,3836.9,0.32843]
[1761895757094,0.3337,3837.2,3837.1,4.55381641]
[1761895757294,0.3337,3837.2,3837.1,13.59681641]
[1761895757495,0.3337,3837.2,3837.1,54.39681641]
[1761895757893,0.33659597,3837.2,3837.1,54.39899774]
[1761895760694,0.4742,3838.0,3837.1,54.39899774]
[1761895760893,0.3337,3837.9,3837.8,1.34601641]
[1761895761094,0.5638,3837.9,3837.8,10.38801641]
[1761895761897,0.56621564,3837.9,3837.8,10.38801641]
[1761895762798,0.79331564,3837.9,3837.8,9.042]
[1761895762999,0.5638,3837.3,3837.1,44.00998133]
[1761895763198,0.7909,3837.2,3837.1,44.00998133]
[1761895763392,0.7909,3837.2,3837.1,0.00218133]
[1761895763798,0.7909,3837.2,3837.1,9.04318133]
[1761895766408,0.7909,3837.2,3837.1,0.00218133]
[1761895766607,0.7909,3837.2,3836.2,3.2078]
[1761895766908,0.7909,3836.3,3836.2,3.2078]
[1761895767105,0.7909,3836.3,3836.2,49.6988]
[1761895767706,0.7909,3836.3,3836.2,49.70211659]
[1761895768308,0.5638,3836.3,3836.2,49.70211659]
[1761895768510,0.3337,3836.3,3836.2,49.70211659]
[1761895769603,0.3337,3836.8,3836.2,50.03060659]
[1761895769804,0.3337,3836.8,3836.3,1.34601641]
[1761895770004,0.3337,3836.7,3836.3,1.34601641]
[1761895770205,0.3337,3836.4,3836.2,49.70211659]
[1761895770606,0.5638,3836.4,3836.2,49.70211659]
[1761895770802,0.5638,3836.3,3836.2,49.70211659]
[1761895774413,0.3337,3836.3,3836.2,49.70211659]
[1761895775913,0.5638,3836.3,3836.2,49.70211659]
[1761895776315,0.7909,3836.3,3836.2,40.80331659]
[1761895776515,0.7909,3836.3,3836.2,49.84431659]
[1761895779513,0.7909,3836.3,3836.2,9.04431659]
[1761895780015,0.7909,3836.3,3836.2,49.84431659]
[1761895780216,0.5638,3836.3,3836.2,49.84431659]
[1761895780515,0.3337,3836.3,3836.2,50.17280659]
[1761895781609,0.3337,3836.3,3836.2,49.84431659]
[1761895783718,0.3518,3836.8,3836.2,49.84431659]
[1761895783917,0.3518,3836.8,3836.4,1.67449641]
[1761895784218,0.3518,3836.8,3836.5,9.041]
[1761895784720,0.3518,3836.8,3836.6,0.32846]
[1761895788921,0.5871,3836.8,3836.6,0.32846]
[1761895789121,0.3518,3836.7,3836.6,0.32846]
[1761895790117,0.3518,3836.7,3836.5,9.041]
[1761895790317,0.3518,3836.6,3836.5,9.041]
[1761895790519,0.5871,3836.6,3836.5,9.041]
[1761895791322,0.3518,3836.6,3836.5,9.041]
[1761895792818,0.5871,3836.6,3836.5,9.041]
[1761895794721,0.3518,3836.6,3836.5,9.041]
[1761895798225,0.5871,3836.6,3836.5,9.041]
[1761895800223,0.3518,3836.6,3836.5,9.041]
[1761895801421,0.1341,3837.0,3836.8,0.32845]
[1761895801624,0.3518,3837.2,3837.0,0.32843]
[1761895801828,1.57134988,3837.4,3837.1,9.039]
[1761895801829,0.3518,3837.4,3837.1,9.039]
[1761895802023,0.3518,3837.4,3837.3,1.19596105]
[1761895802224,0.3518,3837.4,3837.3,41.99596105]
[1761895809018,0.1341,3837.5,3837.3,42.32437105]
[1761895809224,0.4859,3837.5,3837.4,9.038]
[1761895810124,0.9563,3837.5,3837.4,9.038]
[1761895811429,0.9563,3837.5,3837.3,40.8]
[1761895811629,0.6045,3837.5,3837.4,9.037]
[1761895812130,0.7022,3837.5,3837.4,9.037]
[1761895812831,0.4669,3837.5,3837.4,9.037]
[1761895813725,1.90414988,3837.8,3837.4,9.037]
[1761895813931,0.3328,3837.8,3837.7,1.52434105]
[1761895814128,0.3328,3837.8,3837.7,10.23296105]
[1761895814328,0.5635,3837.8,3837.7,9.037]
[1761895815227,0.3328,3837.8,3837.7,9.037]
[1761895816128,0.3328,3837.8,3837.6,0.32838]
[1761895816328,0.3328,3837.8,3837.7,9.037]
[1761895819131,0.3328,3837.8,3837.7,10.23196105]
[1761895821029,0.787,3837.8,3837.7,10.23196105]
[1761895821229,0.1325,3837.5,3837.3,40.8]
[1761895821434,0.1325,3837.5,3837.4,9.035]
[1761895821435,0.6839,3837.5,3837.4,9.035]
[1761895824538,0.4623,3837.5,3837.4,9.035]
[1761895826737,0.9165,3837.5,3837.3,40.8]
[1761895826942,0.784,3837.4,3837.3,40.8]
[1761895827239,0.784,3837.4,3837.3,49.835]
[1761895827637,0.3298,3837.4,3837.3,49.835]
[1761895827938,0.5514,3837.4,3837.3,49.835]
[1761895828657,0.784,3837.4,3837.3,49.835]
[1761895829447,0.5514,3837.4,3837.3,49.835]
[1761895830249,0.3298,3837.4,3837.3,49.835]
[1761895830949,0.1325,3837.5,3837.3,49.835]
[1761895831149,0.4623,3837.5,3837.4,1.19596105]
[1761895831945,0.6839,3837.5,3837.4,1.19596105]
[1761895832546,0.784,3837.4,3837.3,49.835]
[1761895834561,0.784,3837.4,3837.3,40.8]
[1761895834744,0.784,3836.9,3836.7,1.86157715]
[1761895835044,0.4623,3836.5,3836.4,5.06937715]
[1761895835244,0.4623,3836.5,3836.4,54.90337715]
[1761895835447,0.3298,3836.5,3836.4,53.0418]
[1761895835647,0.3298,3836.8,3836.5,0.32849]
[1761895835855,0.3298,3836.8,3836.6,1.19596105]
[1761895836056,0.3298,3836.8,3836.7,9.034]
[1761895837258,0.3298,3836.8,3836.7,9.36247]
[1761895838356,0.3298,3836.9,3836.7,9.36247]
[1761895840358,0.3298,3837.0,3836.8,0.32846]
[1761895840556,3.2078,3837.1,3836.9,1.19596105]
[1761895840747,0.3349,3837.4,3837.0,9.36244]
[1761895840946,0.3349,3837.4,3837.2,1.19596105]
[1761895841157,0.5691,3837.3,3837.2,1.19596105]
[1761895841357,0.5691,3837.3,3837.2,51.02996105]
[1761895841555,0.3349,3837.3,3837.2,51.02996105]